bitfinex/quotes_SOLUSD_20230904
["timestamp","ask_amount","ask_price","bid_price","bid_amount"]
[1693807975329,90.2655,19.688,19.671,4.94461036]
[1693807975521,90.2655,19.688,19.672,55.0]
[1693807975831,90.2655,19.688,19.673,4.94461036]
[1693807976033,90.2655,19.688,19.675,4.94461036]
[1693807976334,90.2655,19.688,19.673,4.94461036]
[1693807976631,90.2655,19.688,19.674,55.0]
[1693807976936,90.2655,19.688,19.675,4.94461036]
[1693807977131,90.2655,19.688,19.676,55.0]
[1693807977436,90.2655,19.688,19.677,4.94461036]
[1693807977727,90.2655,19.688,19.676,55.0]
[1693807977937,90.2655,19.688,19.677,2.5021701]
[1693807978119,90.2655,19.688,19.676,55.0]
[1693807978426,90.2655,19.688,19.677,2.55413322]
[1693808009371,90.2655,19.688,19.676,55.0]
[1693808014667,90.2655,19.688,19.677,3.05070604]
[1693808015467,90.2655,19.688,19.676,55.0]
[1693808015665,90.2655,19.688,19.67,106.04032644]
[1693808015965,90.2655,19.688,19.671,4.94461036]
[1693808017071,90.2655,19.688,19.672,55.0]
[1693808017271,90.2655,19.688,19.673,4.94461036]
[1693808017455,90.2655,19.688,19.674,55.0]
[1693808017655,90.2655,19.688,19.675,4.94461036]
[1693808019768,90.2655,19.688,19.676,55.0]
[1693808019973,90.2655,19.688,19.677,4.94461036]
[1693808020163,90.2655,19.688,19.678,55.0]
[1693808020359,90.2655,19.688,19.679,4.94461036]
[1693808020559,90.2655,19.688,19.678,55.0]
[1693808021271,90.2655,19.688,19.678,54.0]
[1693808028770,90.2655,19.688,19.671,4.94461036]
[1693808028973,90.2655,19.688,19.672,55.0]
[1693808029167,90.2655,19.688,19.673,4.94461036]
[1693808029362,90.2655,19.688,19.674,55.0]
[1693808029568,90.2655,19.688,19.675,4.94461036]
[1693808029768,90.2655,19.688,19.676,55.0]
[1693808030074,90.2655,19.688,19.677,4.94461036]
[1693808036872,90.2655,19.688,19.678,55.0]
[1693808037075,90.2655,19.688,19.679,24.94461036]
[1693808037376,90.2655,19.688,19.68,55.0]
[1693808037679,90.2655,19.688,19.681,4.94461036]
[1693808037883,25.85,19.69,19.681,4.94461036]
[1693808038676,25.85,19.69,19.68,55.0]
[1693808038880,25.85,19.69,19.681,4.94461036]
[1693808039577,98.5679,19.693,19.682,55.0]
[1693808039780,98.5679,19.693,19.683,4.94461036]
[1693808039968,55.50050811,19.694,19.682,55.0]
[1693808040164,15.01676828,19.694,19.682,55.0]
[1693808040378,98.5679,19.699,19.683,4.94461036]
[1693808040594,98.5679,19.699,19.684,55.0]
[1693808040791,25.85,19.7,19.685,4.94461036]
[1693808041081,25.85,19.7,19.686,55.0]
[1693808041275,20.0,19.699,19.686,55.0]
[1693808045371,20.0,19.699,19.687,2.62030799]
[1693808045574,20.0,19.699,19.686,55.0]
[1693808045976,20.0,19.699,19.687,2.65841827]
[1693808046888,20.0,19.699,19.686,55.0]
[1693808047076,20.0,19.699,19.687,2.60257087]
[1693808047277,20.0,19.699,19.686,55.0]
[1693808047587,20.0,19.699,19.687,2.73762526]
[1693808059391,20.0,19.699,19.686,55.0]
[1693808060595,105.39571706,19.703,19.69,25.85]
[1693808060596,90.0009,19.703,19.69,25.85]
[1693808060798,90.0009,19.703,19.691,55.49999011]
[1693808063994,25.85,19.71,19.691,55.49999011]
[1693808064196,20.0,19.709,19.691,55.49999011]
[1693808068811,19.5,19.709,19.691,55.49999011]
[1693808074320,25.85,19.71,19.692,20.0]
[1693808074506,25.85,19.71,19.693,55.99999011]
[1693808074708,25.85,19.71,19.694,20.0]
[1693808074917,25.85,19.71,19.695,55.99999011]
[1693808075111,25.85,19.71,19.696,20.0]
[1693808075314,25.85,19.71,19.697,55.99999011]
[1693808075714,25.85,19.71,19.698,20.0]
[1693808075911,25.85,19.71,19.699,55.99999011]
[1693808076618,94.2156,19.712,19.699,55.99999011]
[1693808076818,15.32148297,19.716,19.699,55.99999011]
[1693808081729,19.9541552,19.717,19.699,55.99999011]
[1693808090221,14.95433789,19.718,19.699,55.99999011]
[1693808090422,34.90614868,19.718,19.699,55.99999011]
[1693808090623,19.95181079,19.717,19.699,55.99999011]
[1693808091528,26.69941789,19.718,19.699,55.99999011]
[1693808091728,55.0,19.717,19.699,55.99999011]
[1693808092135,95.0288,19.716,19.699,55.99999011]
[1693808101539,25.85,19.71,19.699,0.99999011]
[1693808101739,25.85,19.71,19.693,39.81329273]
[1693808101740,25.85,19.71,19.694,20.99999011]
[1693808102341,25.85,19.71,19.695,20.0]
[1693808102540,25.85,19.71,19.696,0.99999011]
[1693808102741,25.85,19.71,19.694,0.99999011]
[1693808103055,25.85,19.71,19.694,55.99999011]
[1693808103255,25.85,19.71,19.695,20.0]
[1693808103544,25.85,19.71,19.696,55.99999011]
[1693808103741,25.85,19.71,19.698,0.99999011]
[1693808103944,25.85,19.71,19.698,55.99999011]
[1693808104132,25.85,19.71,19.7,0.99999011]
[1693808115450,146.5708343,19.716,19.7,81.84999011]
[1693808115660,95.0288,19.716,19.7,81.84999011]
[1693808146880,95.0288,19.716,19.701,20.0]
[1693808147081,95.0288,19.716,19.702,55.99999011]
[1693808147280,95.0288,19.716,19.703,20.0]
[1693808147583,95.0288,19.716,19.704,55.99999011]
[1693808147776,95.0288,19.716,19.705,20.0]
[1693808147977,95.0288,19.716,19.706,55.99999011]
[1693808148181,95.0288,19.716,19.707,20.0]
[1693808148376,25.85,19.72,19.708,55.99999011]
[1693808150984,97.4097,19.727,19.708,55.99999011]
[1693808151197,109.15478,19.727,19.708,55.99999011]
[1693808151580,25.85,19.72,19.708,55.99999011]
[1693808157876,11.74508,19.726,19.708,55.99999011]
[1693808160383,136.9997558,19.727,19.708,55.99999011]
[1693808163092,136.9997558,19.727,19.71,25.85]
[1693808163293,136.9997558,19.727,19.711,55.0]
[1693808165993,97.4097,19.727,19.711,55.0]
[1693808188210,137.89245861,19.727,19.711,55.0]
[1693808191408,55.0,19.726,19.711,55.0]
[1693808195714,140.31535861,19.727,19.711,55.0]
[1693808209744,99.8326,19.727,19.711,55.0]
[1693808210635,2.4229,19.727,19.711,55.0]
[1693808215845,20.0,19.729,19.711,55.0]
[1693808219950,20.0,19.729,19.711,95.79513183]
[1693808243454,20.0,19.729,19.711,55.0]
[1693808252276,25.85,19.73,19.711,55.0]
[1693808252670,20.0,19.729,19.711,55.0]
[1693808256173,20.0,19.729,19.71,25.85]
[1693808257478,20.0,19.729,19.711,55.0]
[1693808298825,60.68594621,19.729,19.711,55.0]
[1693808308336,95.9326,19.728,19.711,55.0]
[1693808308739,60.68594621,19.729,19.711,55.0]
[1693808308927,95.9326,19.728,19.711,55.0]
[1693808309121,95.9326,19.728,19.707,0.49999011]
[1693808309427,74.95181079,19.727,19.707,20.49999011]
[1693808309741,170.88441079,19.727,19.707,20.49999011]
[1693808310540,170.88441079,19.727,19.709,0.49999011]
[1693808310735,170.88441079,19.727,19.709,20.49999011]
[1693808310937,170.88441079,19.727,19.71,55.0]
[1693808311734,170.88441079,19.727,19.709,20.0]
[1693808311941,170.88441079,19.727,19.71,55.0]
[1693808313038,25.85,19.72,19.71,55.0]
[1693808313822,25.85,19.72,19.707,0.49999011]
[1693808314228,25.85,19.72,19.705,0.49999011]
[1693808315326,25.85,19.72,19.705,55.49999011]
[1693808315523,25.85,19.72,19.706,20.0]
[1693808315731,25.85,19.72,19.707,55.49999011]
[1693808315939,25.85,19.72,19.708,20.0]
[1693808316131,25.85,19.72,19.709,0.49999011]
[1693808324734,25.85,19.72,19.709,55.49999011]
[1693808324934,25.85,19.72,19.709,55.0]
[1693808330547,25.85,19.72,19.708,20.0]
[1693808330743,111.34508097,19.727,19.709,0.49999011]
[1693808330944,111.34508097,19.727,19.704,20.0]
[1693808330945,57.4229,19.726,19.705,0.49999011]
[1693808331150,2.4229,19.725,19.705,0.49999011]
[1693808332147,2.4229,19.725,19.705,55.49999011]
[1693808332344,2.4229,19.725,19.706,20.0]
[1693808332543,2.4229,19.725,19.707,55.49999011]
[1693808332945,2.4229,19.725,19.708,20.0]
[1693808333145,2.4229,19.725,19.709,55.49999011]
[1693808333347,25.85,19.72,19.709,55.0]
[1693808341747,136.77684149,19.727,19.709,55.0]
[1693808349062,55.0,19.726,19.708,20.0]
[1693808349262,57.42528,19.726,19.706,20.49999011]
[1693808349460,57.42528,19.726,19.709,20.0]
[1693808349666,57.42528,19.726,19.707,0.49999011]
[1693808350351,57.42528,19.726,19.707,55.49999011]
[1693808350557,57.42528,19.726,19.708,20.0]
[1693808350761,57.42528,19.726,19.709,55.49999011]
[1693808351161,57.42528,19.726,19.709,55.0]
[1693808353276,25.85,19.72,19.709,55.0]
[1693808358272,2.42528,19.726,19.709,55.0]
[1693808370488,57.42528,19.726,19.709,55.0]
[1693808370877,99.4184,19.725,19.709,55.0]
[1693808373285,25.85,19.72,19.709,55.0]
[1693808382494,99.4184,19.725,19.709,55.0]
[1693808382897,2.42528,19.726,19.709,55.0]
[1693808384397,57.42528,19.726,19.709,55.0]
[1693808384880,90.2076,19.725,19.709,55.0]
[1693808403807,2.42528,19.726,19.709,55.0]
[1693808417017,20.0,19.729,19.709,55.0]
[1693808417217,59.99594319,19.729,19.709,55.0]
[1693808421423,59.99594319,19.729,19.71,25.85]
[1693808421606,59.99594319,19.729,19.711,55.0]
[1693808433319,59.99594319,19.729,19.71,25.85]
[1693808433518,71.73863319,19.729,19.71,25.85]
[1693808434521,55.0,19.728,19.71,25.85]
[1693808434727,55.0,19.728,19.709,0.49999011]
[1693808434933,103.60499,19.727,19.709,20.49999011]
[1693808435136,55.0,19.726,19.709,20.0]
[1693808435335,55.0,19.726,19.707,0.49999011]
[1693808436232,55.0,19.726,19.707,55.49999011]
[1693808436425,103.60499,19.727,19.71,25.85]
[1693808436625,103.60499,19.727,19.711,55.0]
[1693808450341,103.60499,19.727,19.71,25.85]
[1693808451946,103.60499,19.727,19.711,55.0]
[1693808457354,91.8623,19.727,19.711,55.0]
[1693808462666,20.0,19.729,19.711,55.0]
[1693808487681,20.0,19.729,19.71,25.85]
[1693808487876,55.0,19.728,19.71,25.85]
[1693808488177,55.0,19.728,19.709,0.49999011]
[1693808488379,66.74269,19.728,19.709,20.0]
[1693808488966,66.74269,19.728,19.706,20.49999011]
[1693808489178,66.74269,19.728,19.707,25.42355817]
[1693808489368,66.74269,19.728,19.709,0.49999011]
[1693808489774,96.3512,19.727,19.709,55.49999011]
[1693808492780,96.3512,19.727,19.709,80.92354828]
[1693808492983,96.3512,19.727,19.709,80.42355817]
[1693808494776,96.3512,19.727,19.71,25.85]
[1693808494977,11.74269,19.728,19.711,55.0]
[1693808495383,11.74269,19.728,19.712,107.41237102]
[1693808495590,11.74269,19.728,19.713,55.0]
[1693808495877,11.74269,19.728,19.714,45.42355817]
[1693808496265,11.74269,19.728,19.715,55.0]
[1693808496465,95.0379,19.733,19.716,20.0]
[1693808496886,95.0379,19.733,19.717,55.0]
[1693808497183,40.78296145,19.735,19.717,55.0]
[1693808497487,95.0379,19.739,19.718,20.0]
[1693808497784,161.81299,19.738,19.719,55.0]
[1693808499089,11.74269,19.737,19.719,55.0]
[1693808499588,55.0,19.736,19.719,55.0]
[1693808502995,11.74269,19.737,19.719,55.0]
[1693808504987,11.74269,19.737,19.72,25.85]
[1693808505210,11.74269,19.737,19.721,55.0]
[1693808516992,55.0,19.736,19.721,55.0]
[1693808521208,55.0,19.736,19.711,25.42355817]
[1693808521209,25.85,19.73,19.711,25.42355817]
[1693808521504,25.85,19.73,19.715,75.0]
[1693808530911,95.9893563,19.736,19.715,75.0]
[1693808531097,107.7320463,19.736,19.715,75.0]
[1693808535115,25.85,19.73,19.715,75.0]
[1693808537424,25.85,19.73,19.715,116.20425747]
[1693808538313,11.74269,19.736,19.715,116.20425747]
[1693808538530,11.74269,19.736,19.716,25.42355817]
[1693808538716,95.0703,19.738,19.717,75.0]
[1693808542624,95.0703,19.738,19.72,25.85]
[1693808542932,95.0703,19.738,19.721,55.0]
[1693808546529,25.85,19.74,19.721,55.0]
[1693808546724,20.0,19.739,19.721,55.0]
[1693808546927,367.5257807,19.745,19.721,143.76562643]
[1693808547126,15.06690319,19.748,19.722,45.42355817]
[1693808547321,117.95631079,19.747,19.723,55.0]
[1693808547526,117.95631079,19.747,19.723,80.42355817]
[1693808547726,117.95631079,19.747,19.724,20.0]
[1693808547926,117.95631079,19.747,19.725,55.0]
[1693808548126,159.1443493,19.747,19.725,55.0]
[1693808548332,159.1443493,19.747,19.726,20.0]
[1693808548632,159.1443493,19.747,19.727,55.0]
[1693808548829,159.1443493,19.747,19.728,20.0]
[1693808549033,159.1443493,19.747,19.729,55.0]
[1693808550248,25.85,19.74,19.729,55.0]
[1693808552126,159.1443493,19.747,19.729,55.0]
[1693808552326,139.19253851,19.747,19.73,25.85]
[1693808552523,139.19253851,19.747,19.731,55.0]
[1693808553336,98.0045,19.747,19.731,55.0]
[1693808554037,25.85,19.75,19.731,55.0]
[1693808554440,20.0,19.749,19.731,55.0]
[1693808562247,25.85,19.75,19.731,55.0]
[1693808562442,20.0,19.749,19.731,55.0]
[1693808563137,25.85,19.75,19.731,55.0]
[1693808563347,239.52332925,19.769,19.74,25.85]
[1693808563545,95.9444,19.763,19.741,75.0]
[1693808563739,25.85,19.76,19.741,75.0]
[1693808564342,95.9444,19.763,19.741,75.0]
[1693808564739,95.9444,19.763,19.741,221.86602522]
[1693808565243,55.99517388,19.768,19.741,221.86602522]
[1693808566442,55.0,19.767,19.741,221.86602522]
[1693808566749,55.0,19.767,19.741,201.86602522]
[1693808566936,55.0,19.767,19.742,20.0]
[1693808567135,55.0,19.767,19.743,55.0]
[1693808567346,55.0,19.767,19.744,20.0]
[1693808567546,55.0,19.767,19.745,55.0]
[1693808567746,55.0,19.767,19.746,20.0]
[1693808567949,55.0,19.767,19.747,55.0]
[1693808568141,55.0,19.767,19.748,20.0]
[1693808568343,55.0,19.767,19.749,55.0]
[1693808572547,25.85,19.76,19.748,20.0]
[1693808572776,20.0,19.759,19.731,14.98479472]
[1693808573056,126.31507219,19.759,19.732,20.0]
[1693808573356,93.8091,19.758,19.732,20.0]
[1693808573553,55.0,19.757,19.732,20.0]
[1693808574060,55.0,19.757,19.732,45.85]
[1693808575048,55.0,19.757,19.733,55.0]
[1693808575255,93.8091,19.758,19.734,20.0]
[1693808575551,93.8091,19.758,19.735,55.0]
[1693808575764,93.8091,19.758,19.736,20.0]
[1693808575961,93.8091,19.758,19.737,55.0]
[1693808576145,93.8091,19.758,19.738,20.0]
[1693808576346,93.8091,19.758,19.739,55.0]
[1693808582952,93.8091,19.758,19.74,25.85]
[1693808583159,93.8091,19.758,19.741,55.0]
[1693808584466,25.85,19.76,19.741,55.0]
[1693808584759,20.0,19.759,19.741,55.0]
[1693808585353,25.85,19.76,19.741,55.0]
[1693808585554,98.8668,19.767,19.742,20.0]
[1693808585759,98.8668,19.767,19.75,25.85]
[1693808585955,98.8668,19.767,19.751,55.0]
[1693808595965,98.8668,19.767,19.744,56.40941293]
[1693808596165,25.85,19.76,19.745,20.0]
[1693808597468,25.85,19.76,19.746,55.0]
[1693808597665,25.85,19.76,19.747,20.0]
[1693808597864,25.85,19.76,19.748,55.0]
[1693808599757,25.85,19.76,19.747,20.0]
[1693808599958,25.85,19.76,19.745,20.0]
[1693808600267,25.85,19.76,19.741,20.0]
[1693808601468,25.85,19.76,19.742,55.0]
[1693808601670,25.85,19.76,19.743,20.0]
[1693808601978,25.85,19.76,19.744,55.0]
[1693808602183,25.85,19.76,19.745,20.0]
[1693808602480,25.85,19.76,19.746,55.0]
[1693808602672,25.85,19.76,19.747,20.0]
[1693808611489,25.85,19.76,19.748,55.0]
[1693808614394,25.85,19.76,19.747,20.0]
[1693808614583,25.85,19.76,19.741,20.0]
[1693808614779,25.85,19.76,19.742,55.0]
[1693808615074,25.85,19.76,19.743,20.0]
[1693808615275,25.85,19.76,19.744,55.0]
[1693808615689,25.85,19.76,19.745,20.0]
[1693808615991,25.85,19.76,19.746,55.0]
[1693808616174,25.85,19.76,19.747,20.0]
[1693808617897,25.85,19.76,19.748,55.0]
[1693808619399,25.85,19.76,19.747,20.0]
[1693808619576,25.85,19.76,19.741,20.0]
[1693808619773,25.85,19.76,19.742,55.0]
[1693808619977,25.85,19.76,19.743,20.0]
[1693808620193,25.85,19.76,19.744,55.0]
[1693808620395,25.85,19.76,19.745,20.0]
[1693808620587,25.85,19.76,19.746,55.0]
[1693808621084,25.85,19.76,19.747,20.0]
[1693808621679,25.85,19.76,19.746,55.0]
[1693808622395,25.85,19.76,19.747,20.0]
[1693808622898,25.85,19.76,19.748,55.0]
[1693808623091,25.85,19.76,19.746,55.0]
[1693808623892,25.85,19.76,19.747,20.0]
[1693808624194,25.85,19.76,19.748,55.0]
[1693808625795,25.85,19.76,19.74,81.592785]
[1693808626097,25.85,19.76,19.741,20.0]
[1693808627389,25.85,19.76,19.742,55.0]
[1693808627589,25.85,19.76,19.743,20.0]
[1693808627790,25.85,19.76,19.744,55.0]
[1693808628196,25.85,19.76,19.745,20.0]
[1693808628394,25.85,19.76,19.746,55.0]
[1693808628798,25.85,19.76,19.747,20.0]
[1693808629097,25.85,19.76,19.748,55.0]
[1693808632592,25.85,19.76,19.74,25.85]
[1693808632887,25.85,19.76,19.741,75.0]
[1693808647003,25.85,19.76,19.741,55.0]
[1693808647415,25.85,19.76,19.742,20.0]
[1693808647715,25.85,19.76,19.743,55.0]
[1693808647921,25.85,19.76,19.744,20.0]
[1693808648118,25.85,19.76,19.745,55.0]
[1693808648419,25.85,19.76,19.746,20.0]
[1693808658629,65.5139676,19.76,19.746,20.0]
[1693808666234,96.5921,19.759,19.746,20.0]
[1693808669037,65.5139676,19.76,19.744,14.94230768]
[1693808669239,25.85,19.75,19.73,25.85]
[1693808669527,25.85,19.75,19.735,20.0]
[1693808669731,25.85,19.75,19.731,20.0]
[1693808670128,25.85,19.75,19.731,87.161741]
[1693808670439,25.85,19.75,19.732,25.42355817]
[1693808670631,25.85,19.75,19.733,20.0]
[1693808670933,25.85,19.75,19.734,55.0]
[1693808671334,25.85,19.75,19.735,20.0]
[1693808671533,25.85,19.75,19.736,55.0]
[1693808671833,25.85,19.75,19.737,20.0]
[1693808681729,25.85,19.75,19.733,20.0]
[1693808682045,25.85,19.75,19.734,55.0]
[1693808682236,25.85,19.75,19.735,20.0]
[1693808685542,25.85,19.75,19.736,55.0]
[1693808685729,25.85,19.75,19.737,20.0]
[1693808689744,25.85,19.75,19.733,20.0]
[1693808689948,25.85,19.75,19.734,55.0]
[1693808690243,25.85,19.75,19.735,20.0]
[1693808690628,25.85,19.75,19.736,55.0]
[1693808690827,25.85,19.75,19.737,20.0]
[1693808717359,25.85,19.75,19.729,55.0]
[1693808717671,106.65033079,19.749,19.722,101.90353414]
[1693808717866,106.65033079,19.749,19.723,45.42355817]
[1693808718165,99.4163,19.748,19.723,45.42355817]
[1693808718368,75.0,19.747,19.723,45.42355817]
[1693808718764,75.0,19.747,19.724,55.0]
[1693808718965,75.0,19.747,19.725,20.0]
[1693808719165,75.0,19.747,19.726,55.0]
[1693808719358,75.0,19.747,19.727,20.0]
[1693808719570,75.0,19.747,19.728,55.0]
[1693808720370,75.0,19.747,19.727,20.0]
[1693808720674,25.85,19.74,19.724,20.0]
[1693808721568,25.85,19.74,19.725,55.0]
[1693808721762,25.85,19.74,19.726,20.0]
[1693808721963,25.85,19.74,19.727,55.0]
[1693808722980,86.69852,19.747,19.727,55.0]
[1693808725776,102.13924947,19.747,19.727,55.0]
[1693808726671,142.7714683,19.747,19.727,55.0]
[1693808726871,31.69852,19.747,19.73,25.85]
[1693808727076,31.69852,19.747,19.731,55.0]
[1693808741786,11.69852,19.747,19.731,55.0]
[1693808741992,99.4163,19.748,19.731,55.0]
[1693808742180,20.0,19.747,19.731,55.0]
[1693808754899,97.1092,19.755,19.732,45.42355817]
[1693808755099,97.1092,19.755,19.733,55.0]
[1693808755296,97.1092,19.755,19.734,45.42355817]
[1693808755598,97.1092,19.755,19.735,55.0]
[1693808755795,97.1092,19.755,19.736,20.0]
[1693808755989,97.1092,19.755,19.737,55.0]
[1693808759808,97.1092,19.755,19.737,70.0486322]
[1693808767807,97.1092,19.755,19.737,111.53116384]
[1693808769216,97.1092,19.755,19.74,25.85]
[1693808769515,97.1092,19.755,19.741,55.0]
[1693808769903,25.85,19.76,19.741,55.0]
[1693808770102,20.0,19.759,19.741,55.0]
[1693808776604,20.0,19.759,19.741,80.42355817]
[1693808777023,20.0,19.759,19.742,25.42355817]
[1693808777215,20.0,19.759,19.743,55.0]
[1693808789632,20.0,19.759,19.743,70.55443037]
[1693808789827,20.0,19.759,19.743,111.22278479]
[1693808805239,26.43195802,19.766,19.743,136.64634296]
[1693808805459,26.43195802,19.766,19.744,45.42355817]
[1693808805460,90.682,19.766,19.744,45.42355817]
[1693808805642,90.682,19.766,19.745,55.0]
[1693808805825,90.682,19.766,19.746,20.0]
[1693808806026,90.682,19.766,19.747,55.0]
[1693808807526,90.682,19.766,19.75,25.85]
[1693808807843,90.682,19.766,19.751,55.0]
[1693808813548,90.682,19.766,19.75,55.0]
[1693808822742,90.682,19.766,19.75,80.85]
[1693808824651,90.682,19.766,19.74,25.85]
[1693808824851,90.682,19.766,19.744,20.0]
[1693808825558,90.682,19.766,19.744,45.85]
[1693808826058,90.682,19.766,19.745,55.0]
[1693808826259,90.682,19.766,19.746,20.0]
[1693808826444,90.682,19.766,19.747,55.0]
[1693808827261,25.85,19.76,19.746,20.0]
[1693808827442,25.85,19.76,19.744,20.0]
[1693808828542,25.85,19.76,19.745,55.0]
[1693808828747,25.85,19.76,19.746,20.0]
[1693808828958,25.85,19.76,19.747,55.0]
[1693808840068,25.85,19.76,19.746,20.0]
[1693808840272,25.85,19.76,19.744,20.0]
[1693808840462,25.85,19.76,19.747,20.0]
[1693808840859,25.85,19.76,19.744,20.0]
[1693808841467,25.85,19.76,19.745,55.0]
[1693808841656,25.85,19.76,19.746,20.0]
[1693808841857,25.85,19.76,19.747,55.0]
[1693808842570,25.85,19.76,19.743,15.55443037]
[1693808842767,25.85,19.75,19.739,40.70075948]
[1693808843070,25.85,19.75,19.73,25.85]
[1693808843279,118.625,19.749,19.73,25.85]
[1693808843473,118.625,19.749,19.73,41.328481]
[1693808844359,118.625,19.749,19.731,55.0]
[1693808844668,118.625,19.749,19.731,80.42355817]
[1693808852678,118.625,19.749,19.731,25.42355817]
[1693808852878,118.625,19.749,19.73,81.54721517]
[1693808853971,118.625,19.749,19.731,55.0]
[1693808861384,118.625,19.749,19.731,80.42355817]
[1693808874189,118.625,19.749,19.73,81.54721517]
[1693808875505,118.625,19.749,19.731,55.0]
[1693808875897,55.0,19.748,19.723,111.84252023]
[1693808876198,25.85,19.74,19.715,156.46238538]
[1693808876404,25.85,19.74,19.72,25.85]
[1693808876604,20.0,19.739,19.72,25.85]
[1693808877491,20.0,19.739,19.721,55.0]
[1693808877691,20.0,19.739,19.721,80.42355817]
[1693808881600,45.96748061,19.747,19.721,80.42355817]
[1693808881791,2.35485,19.747,19.73,25.85]
[1693808881993,2.35485,19.747,19.731,55.0]
[1693808883300,20.0,19.748,19.731,55.0]
[1693808891214,20.0,19.748,19.731,70.24480486]
[1693808892113,20.0,19.748,19.731,110.89761783]
[1693808902922,20.0,19.747,19.731,110.89761783]
[1693808903123,20.0,19.749,19.731,110.89761783]
[1693808913814,20.0,19.749,19.731,55.89761783]
[1693808914016,20.0,19.749,19.731,15.24480486]
[1693808916827,20.0,19.749,19.732,55.0]
[1693808924036,20.0,19.749,19.732,54.92096934]
[1693808924838,26.45088879,19.748,19.732,54.92096934]
[1693808925041,20.0,19.747,19.732,54.92096934]
[1693808927633,25.85,19.74,19.732,54.92096934]
[1693808931734,99.5488,19.746,19.732,54.92096934]
[1693808951954,20.0,19.747,19.732,54.92096934]
[1693808952160,20.0,19.749,19.732,54.92096934]
[1693808952455,20.0,19.749,19.733,55.0]
[1693808952662,20.0,19.749,19.731,55.0]
[1693808963587,20.0,19.749,19.731,96.13069908]
[1693808968379,55.0,19.748,19.731,41.13069908]
[1693808968575,25.85,19.74,19.726,15.17181956]
[1693808968781,25.85,19.74,19.727,20.0]
[1693808969994,25.85,19.74,19.728,55.0]
[1693808970377,25.85,19.74,19.727,20.0]
[1693808970689,25.85,19.74,19.725,20.0]
[1693808971197,25.85,19.74,19.722,20.0]
[1693808971678,25.85,19.74,19.723,55.0]
[1693808971879,25.85,19.74,19.724,20.0]
[1693808972079,25.85,19.74,19.725,55.0]
[1693808972379,25.85,19.74,19.726,20.0]
[1693808972592,25.85,19.74,19.727,55.0]
[1693808993108,122.50341542,19.746,19.727,55.0]
[1693808996110,96.0484,19.746,19.727,55.0]
[1693808996913,11.729,19.748,19.727,55.0]
[1693808997209,20.0,19.747,19.727,55.0]
[1693808998613,20.0,19.747,19.73,25.85]
[1693808998814,20.0,19.747,19.731,55.0]
[1693808999200,11.729,19.748,19.731,55.0]
[1693808999713,20.0,19.747,19.731,55.0]
[1693809001013,20.0,19.749,19.731,55.0]